[Event "OBEM 2019"]
[Site "Bremen"]
[Date "2019.04.14"]
[Round "2.4"]
[White "Hentrop, Malte"]
[Black "Elmali, Timur"]
[Result "0-1"]
[ECO "E94"]
[WhiteElo "1829"]
[BlackElo "2121"]
[Annotator "NA"]
[PlyCount "121"]
[EventDate "2019.04.13"]
[EventType "swiss"]
[EventCountry "GER"]
[SourceTitle "playchess.com"]
[Source "ChessBase"]
[SourceQuality "1"]
[TimeControl "40/5400+30:1800+30"]

1. d4 {[%emt 0:00:00]} Nf6 {[%emt 0:00:00]} 2. c4 {[%emt 0:00:00]} g6 {[%emt 0:00:03]} 3. Nc3 {[%emt 0:00:00]} Bg7 {[%emt 0:00:05]} 4. e4 {[%emt 0:00:00]} d6 {[%emt 0:00:04]} 5. Nf3 {[%emt 0:00:02]} O-O {[%emt 0:00:14]} 6. Be2 {[%emt 0:00:06]} Na6 {[%emt 0:01:32]} 7. O-O {[%emt 0:00:16]} e5 {[%emt 0:00:19]} 8. d5 {[%emt 0:04:37]} Nc5 {[%emt 0:00:23]} 9. Qc2 {[%emt 0:00:07]} a5 {[%emt 0:00:32]} 10. Be3 {[%emt 0:00:58]} b6 {[%emt 0:03:26]} 11. a3 {[%emt 0:02:01]} a4 {[%emt 0:06:52] E94: King's Indian: Classical: 6 Be2 e5 7 0-0: Various Black 7th moves} 12. Bxc5 {[%emt 0:03:12]} bxc5 {[%emt 0:00:10]} 13. b4 $146 {[%emt 0:02:13]} ({Predecessor:} 13. Nd2 Bd7 14. b4 axb3 15. Nxb3 Qe7 16. a4 Ne8 17. a5 Ra6 18. Nb5 f5 19. f3 {0-1 (46) Kothari,P (1405)-Sharma,D (2357) Aurangabad 2018}) 13... axb3 {[%emt 0:04:29]} 14. Qxb3 {[%emt 0:00:07]} Nh5 {[%emt 0:02:37]} 15. Rfb1 {[%emt 0:05:31]} Nf4 {[%emt 0:05:53]} 16. Bf1 {[%emt 0:00:03]} f5 {[%emt 0:00:38]} 17. Qc2 {[%emt 0:09:29]} fxe4 {[%emt 0:05:31]} 18. Nxe4 {[%emt 0:00:09]} Nh3+ {[%emt 0:03:57]} 19. Kh1 {[%emt 0:07:55]} Bg4 {[%emt 0:05:00]} 20. Rb3 {[%emt 0:02:04]} Rf4 {[%emt 0:18:26]} 21. gxh3 {[%emt 0:01:48]} Bxf3+ {[%emt 0:01:24]} 22. Bg2 {[%emt 0:00:06]} Bxe4 {[%emt 0:14:59]} 23. Bxe4 {[%emt 0:00:09]} Qh4 {[%emt 0:00:24]} 24. f3 {[%emt 0:01:40]} Qxh3 {[%emt 0:00:56]} 25. a4 {[%emt 0:59:57]} Rff8 {[%emt 0:04:56]} 26. Rbb1 {[%emt 0:00:00]} Ra7 {[%emt 0:03:00]} 27. Ra2 {[%emt 0:00:00]} Rfa8 {[%emt 0:03:00]} 28. Rba1 {[%emt 0:00:00]} Ra5 {[%emt 0:00:17]} 29. Qg2 {[%emt 0:00:00]} Qd7 {[%emt 0:15:23]} 30. Qc2 {[%emt 0:00:00]} Bh6 {[%emt 0:00:00]} 31. Rg1 {[%emt 0:00:00]} Be3 {[%emt 0:00:00]} ({Better is} 31... Rxa4 $19 32. Rga1 Rxa2 33. Rxa2 Rxa2 34. Qxa2 Kg7) 32. Rb1 {[%emt 0:00:00]} Kg7 {[%emt 0:00:00]} 33. Rb5 {[%emt 0:00:00]} Qh3 {[%emt 0:00:00]} 34. Rb1 {[%emt 0:00:00]} Bf4 {[%emt 0:00:00]} 35. Qg2 {[%emt 0:02:48]} Qxg2+ {[%emt 0:00:00]} 36. Kxg2 {[%emt 0:00:04]} Rxa4 {[%emt 0:00:00]} 37. Rxa4 {[%emt 0:00:08]} Rxa4 {[%emt 0:00:00]} 38. Rb7 {[%emt 0:01:00]} Rxc4 {[%emt 0:00:00]} 39. Rxc7+ {[%emt 0:00:07]} Kh6 {[%emt 0:00:00]} 40. Rc6 {[%emt 0:00:44]} Rd4 {[%emt 0:00:00]} 41. Rxd6 {[%emt 0:30:40]} Rd2+ {[%emt 0:26:57]} 42. Kf1 {[%emt 0:00:00]} Rxh2 {[%emt 0:00:00]} 43. Rc6 {[%emt 0:00:00]} Be3 {[%emt 0:00:00]} 44. Rc7 {[%emt 0:00:00]} Rd2 {[%emt 0:00:00]} 45. Ke1 {[%emt 0:00:00]} Rh2 {[%emt 0:00:00]} ({Black should play} 45... Rg2 $17) 46. Re7 {[%emt 0:00:00]} c4 {[%emt 0:00:00]} 47. Rxe5 {[%emt 0:00:00]} c3 {[%emt 0:00:00]} 48. Bd3 $2 {[%emt 0:00:00]} (48. Re6 $17) 48... Bd2+ {[%emt 0:00:00]} 49. Kd1 $2 {[%emt 0:00:00]} (49. Kf1) 49... Bf4 {[%emt 0:00:00]} 50. Re2 {[%emt 0:00:00] [#]} Rh1+ $2 {[%emt 0:00:00]} ({Better is} 50... Rxe2 $1 $19 51. Bxe2 Kg5) 51. Kc2 {[%emt 0:00:00]} Rc1+ {[%emt 0:00:00]} 52. Kb3 {[%emt 0:00:00]} Kg5 {[%emt 0:00:00]} 53. Kc4 {[%emt 0:00:00]} Kf6 $11 {[%emt 0:00:00]} 54. Kc5 {[%emt 0:00:00]} (54. Re6+ $11 {keeps the balance.} Kf7 55. Kb3) 54... Rd1 {[%emt 0:00:00]} 55. Bc2 {[%emt 0:00:00]} Rd2 {[%emt 0:00:40]} 56. Rxd2 {[%emt 0:00:00]} cxd2 {[%emt 0:00:11]} 57. d6 {[%emt 0:00:00]} h5 {[%emt 0:01:43]} 58. Kc6 {[%emt 0:06:26]} h4 {[%emt 0:00:43]} 59. d7 {[%emt 0:01:32]} Ke7 {[%emt 0:00:06]} 60. Kd5 {[%emt 0:00:16]} h3 {[%emt 0:00:22]} 61. Kd4 {[%emt 0:04:15]} 0-1

[Event "OBEM 2019"]
[Site "Bremen"]
[Date "2019.04.14"]
[Round "3.3"]
[White "Elmali, Timur"]
[Black "Hochhuth, Arnd"]
[Result "1-0"]
[ECO "E38"]
[WhiteElo "2121"]
[BlackElo "1917"]
[Annotator "NA"]
[PlyCount "53"]
[EventDate "2019.04.13"]
[EventType "swiss"]
[EventCountry "GER"]
[SourceTitle "playchess.com"]
[Source "ChessBase"]
[SourceQuality "1"]
[TimeControl "40/5400+30:1800+30"]

1. d4 {[%emt 0:00:00]} Nf6 {[%emt 0:00:00]} 2. c4 {[%emt 0:00:00]} e6 {[%emt 0:01:08]} 3. Nc3 {[%emt 0:00:09]} Bb4 {[%emt 0:00:53]} 4. e3 {[%emt 0:00:22]} O-O {[%emt 0:00:31]} 5. Bd3 {[%emt 0:00:21]} c5 {[%emt 0:02:39]} 6. Nf3 {[%emt 0:01:00]} d6 {[%emt 0:06:14]} 7. Qc2 {[%emt 0:07:16]} Nc6 {[%emt 0:03:57]} 8. O-O {[%emt 0:09:32]} Bxc3 {[%emt 0:08:29]} 9. Qxc3 {[%emt 0:04:55]} Qe7 {[%emt 0:13:47] E38: Nimzo-Indian: Classical: 4...c5} (9... e5 10. Bc2 e4 11. Nd2 cxd4 12. exd4 d5 13. c5 a5 14. Nb1 Nh5 15. Be3 f5 16. Bd1 f4 17. Bxh5 {½-½ (31) Dambacher,M (2485)-Peng,Z (2368) Netherlands 2016}) 10. dxc5 {[%emt 0:10:33]} dxc5 {[%emt 0:01:01]} 11. Ne5 {[%emt 0:00:19]} Nxe5 {[%emt 0:07:34]} 12. Qxe5 {[%emt 0:00:23]} Rd8 $146 {[%emt 0:00:26]} ({Predecessor:} 12... Ng4) 13. Bc2 {[%emt 0:04:36]} b6 {[%emt 0:11:29]} 14. b3 {[%emt 0:02:56]} Bb7 {[%emt 0:01:04]} 15. Bb2 {[%emt 0:00:15]} Qd6 {[%emt 0:02:35]} 16. Qg5 {[%emt 0:02:12]} h6 {[%emt 0:01:54]} 17. Qh4 {[%emt 0:06:48]} e5 {[%emt 0:04:53]} 18. Rad1 {[%emt 0:03:56]} Qe6 {[%emt 0:01:20]} 19. f3 {[%emt 0:00:51]} Rxd1 {[%emt 0:02:21]} 20. Rxd1 {[%emt 0:00:09]} Re8 {[%emt 0:00:08]} 21. a3 {[%emt 0:04:51]} a5 {[%emt 0:06:36]} 22. Qf2 {[%emt 0:02:57]} e4 {[%emt 0:05:26]} 23. f4 {[%emt 0:01:53]} Bc6 {[%emt 0:03:46]} 24. h3 {[%emt 0:03:39]} Nd7 {[%emt 0:00:41]} 25. Qg3 {[%emt 0:09:37]} f6 {[%emt 0:05:42]} 26. f5 {[%emt 0:00:38]} Qe7 $18 {[%emt 0:01:18]} 27. Qe1 {[%emt 0:23:22]} 1-0

[Event "OBEM 2019"]
[Site "Bremen"]
[Date "2019.04.14"]
[Round "3.4"]
[White "Norbach, Alexander"]
[Black "Pienski, Olaf"]
[Result "1-0"]
[ECO "A41"]
[WhiteElo "1972"]
[BlackElo "2081"]
[Annotator "NA RC"]
[PlyCount "99"]
[EventDate "2019.04.13"]
[EventType "swiss"]
[EventCountry "GER"]
[SourceTitle "playchess.com"]
[Source "ChessBase"]
[SourceQuality "1"]
[TimeControl "40/5400+30:1800+30"]

1. d4 {[%emt 0:00:00]} d6 {[%emt 0:00:01]} 2. c4 {[%emt 0:00:14]} e5 {[%emt 0:00:56]} 3. d5 {[%emt 0:00:42]} f5 {[%emt 0:00:32]} 4. g3 {[%emt 0:01:14] A41: 1 d4 d6: Tartakower System and Modern Defence} Be7 {[%emt 0:02:04]} 5. Bg2 {[%emt 0:00:18]} Nf6 {[%emt 0:01:32]} 6. Nc3 {[%emt 0:00:39]} O-O {[%emt 0:03:49]} 7. Nf3 {[%emt 0:00:28]} Nbd7 {[%emt 0:07:23]} (7... a5 8. e4 Na6 9. exf5 Bxf5 10. O-O Qd7 11. Ng5 Nc5 12. Be3 Ng4 13. Nge4 Nxe4 14. Nxe4 {1-0 (59) Ponkratov,P (2613)-Sjugirov,S (2650) Riadh 2017}) 8. Ng5 {[%emt 0:05:46]} Nb6 {[%emt 0:09:18]} 9. b3 {[%emt 0:03:10]} Kh8 $146 {[%emt 0:13:56]} ({Predecessor:} 9... h6 10. Nf3 Nbd7 11. Nh4 Ne8 12. Ng6 Rf6 13. Nxe7+ Qxe7 {1-0 (51) Stefansson,V (1678)-Johannesson,O (2006) Reykjavik 2013}) 10. h4 {[%emt 0:06:11]} Bd7 {[%emt 0:08:02]} 11. e4 {[%emt 0:01:54]} Qc8 {[%emt 0:13:39]} 12. Qe2 {[%emt 0:10:50]} f4 {[%emt 0:03:47]} 13. Bh3 {[%emt 0:02:41]} fxg3 {[%emt 0:07:38]} 14. fxg3 {[%emt 0:00:32]} Bxh3 {[%emt 0:00:34]} 15. Rxh3 {[%emt 0:00:17]} Nbd7 {[%emt 0:01:28]} 16. Be3 {[%emt 0:01:30]} c6 {[%emt 0:04:52]} 17. Kd2 {[%emt 0:05:05]} Nc5 {[%emt 0:00:48]} 18. Bxc5 {[%emt 0:01:19]} dxc5 {[%emt 0:00:05]} 19. Ne6 {[%emt 0:00:59]} b5 {[%emt 0:02:08]} 20. g4 {[%emt 0:02:12]} cxd5 {[%emt 0:07:55]} 21. exd5 {[%emt 0:00:32]} b4 {[%emt 0:00:48]} 22. Ne4 {[%emt 0:04:08]} Nxe4+ {[%emt 0:00:34]} 23. Qxe4 {[%emt 0:00:13]} Rf6 {[%emt 0:07:56]} 24. Ng5 {[%emt 0:01:25]} Rg6 {[%emt 0:00:21]} 25. Nxh7 {[%emt 0:01:01]} Qxg4 {[%emt 0:00:19]} 26. Qxg4 {[%emt 0:02:07]} Rxg4 {[%emt 0:00:02]} 27. Ng5 {[%emt 0:00:33]} Rf8 {[%emt 0:01:33]} 28. Re1 {[%emt 0:02:42]} Rf2+ {[%emt 0:00:45]} 29. Re2 {[%emt 0:05:03]} Rxe2+ {[%emt 0:00:30]} 30. Kxe2 {[%emt 0:00:08]} Kg8 {[%emt 0:00:16]} 31. Nf3 {[%emt 0:04:43]} Bf6 {[%emt 0:00:33]} 32. Rh2 {[%emt 0:01:29]} Kf7 {[%emt 0:00:19]} 33. Ke3 {[%emt 0:01:44]} Ke7 {[%emt 0:00:37] [#]} (33... Kg6 $1 $11 {keeps the balance.}) 34. Re2 {[%emt 0:09:10]} (34. Nd2 $1 $16) 34... Kd7 {[%emt 0:01:05]} 35. Kd3 {[%emt 0:01:57]} Rg3 {[%emt 0:00:16]} 36. Re3 $11 {[%emt 0:06:39]} Rg4 $2 {[%emt 0:00:49]} (36... g6 $1 $11) 37. Nxe5+ {[%emt 0:04:54]} Bxe5 {[%emt 0:00:03]} 38. Rxe5 {[%emt 0:00:11]} Rxh4 {[%emt 0:00:08]} 39. Rg5 {[%emt 0:00:09]} Rh7 {[%emt 0:00:42]} 40. Rg6 {[%emt 0:00:33]} Kc7 {[%emt 0:01:17]} 41. Rc6+ {[%emt 0:30:27]} Kb7 {[%emt 0:30:28]} 42. Rxc5 {[%emt 0:00:13]} a6 {[%emt 0:00:15]} 43. Rc6 {[%emt 0:00:38]} Rh2 {[%emt 0:00:13]} 44. Rg6 {[%emt 0:01:07]} Rxa2 {[%emt 0:00:17]} 45. c5 {[%emt 0:00:21]} a5 {[%emt 0:01:18]} 46. Kc4 {[%emt 0:00:22]} Rd2 {[%emt 0:00:00]} 47. Rxg7+ {[%emt 0:00:00]} Kc8 {[%emt 0:00:00]} 48. d6 {[%emt 0:00:00]} Rc2+ {[%emt 0:00:00]} 49. Kb5 {[%emt 0:00:00]} a4 {[%emt 0:00:00]} 50. c6 {[%emt 0:00:00]} 1-0

[Event "OBEM 2019"]
[Site "Bremen"]
[Date "2019.04.15"]
[Round "4.2"]
[White "Norbach, Alexander"]
[Black "Stieglitz, Dirk"]
[Result "1/2-1/2"]
[ECO "E06"]
[WhiteElo "1972"]
[BlackElo "2076"]
[Annotator "NA RC"]
[PlyCount "54"]
[EventDate "2019.04.13"]
[EventType "swiss"]
[EventCountry "GER"]
[SourceTitle "playchess.com"]
[Source "ChessBase"]
[SourceQuality "1"]
[TimeControl "40/5400+30:1800+30"]

1. d4 {[%emt 0:00:39]} d5 {[%emt 0:00:00]} 2. c4 {[%emt 0:00:20]} e6 {[%emt 0:00:00]} 3. Nc3 {[%emt 0:00:17]} Nf6 {[%emt 0:00:01]} 4. Nf3 {[%emt 0:00:28]} Be7 {[%emt 0:00:09]} 5. g3 {[%emt 0:00:23]} O-O {[%emt 0:00:45]} 6. Bg2 {[%emt 0:00:12]} c6 {[%emt 0:03:28]} 7. Ne5 {[%emt 0:02:58]} Nbd7 {[%emt 0:01:01]} 8. f4 {[%emt 0:04:54]} Nxe5 {[%emt 0:01:06]} 9. dxe5 {[%emt 0:00:22]} Nd7 {[%emt 0:00:42]} 10. Be3 {[%emt 0:01:28]} f6 {[%emt 0:00:53]} 11. Bh3 {[%emt 0:11:09]} Nb6 {[%emt 0:09:29]} 12. cxd5 {[%emt 0:17:30]} exd5 {[%emt 0:03:16]} 13. Bxc8 {[%emt 0:01:32]} Qxc8 {[%emt 0:05:20]} 14. exf6 {[%emt 0:01:36]} Bxf6 {[%emt 0:00:25]} 15. Bxb6 {[%emt 0:00:27]} Bxc3+ {[%emt 0:04:47]} 16. bxc3 {[%emt 0:00:22]} axb6 {[%emt 0:00:05]} 17. O-O {[%emt 0:00:44]} Qe6 {[%emt 0:01:10]} 18. Rf3 {[%emt 0:05:24]} b5 {[%emt 0:01:26]} 19. Qd2 {[%emt 0:03:39]} Rfe8 {[%emt 0:06:38]} 20. Re1 {[%emt 0:03:44]} Ra4 {[%emt 0:01:37]} 21. f5 {[%emt 0:06:55]} Qf6 {[%emt 0:00:27]} 22. h3 {[%emt 0:00:52]} h5 {[%emt 0:01:57]} 23. Ref1 {[%emt 0:06:12]} Rea8 {[%emt 0:02:00]} 24. Qe3 {[%emt 0:06:06]} Re4 {[%emt 0:06:13]} 25. Qd2 {[%emt 0:01:24]} Rea4 {[%emt 0:05:42]} 26. Qe3 {[%emt 0:01:09]} Re4 {[%emt 0:11:17]} 27. Qd2 {[%emt 0:00:14]} Rea4 {[%emt 0:02:16]} 1/2-1/2

[Event "OBEM 2019"]
[Site "Bremen"]
[Date "2019.04.16"]
[Round "5.1"]
[White "Elmali, Timur"]
[Black "Margraf, Daniel"]
[Result "0-1"]
[ECO "E51"]
[WhiteElo "2121"]
[BlackElo "2238"]
[Annotator "ChessBase"]
[PlyCount "126"]
[EventDate "2019.04.13"]
[EventType "swiss"]
[EventCountry "GER"]
[SourceTitle "playchess.com"]
[Source "ChessBase"]
[SourceQuality "1"]
[TimeControl "40/5400+30:1800+30"]

1. d4 {[%emt 0:00:00]} Nf6 {[%emt 0:01:58]} 2. c4 {[%emt 0:00:15]} e6 {[%emt 0:01:23]} 3. Nc3 {[%emt 0:00:25]} Bb4 {[%emt 0:00:20]} 4. e3 {[%emt 0:00:55]} O-O {[%emt 0:00:14]} 5. Nf3 {[%emt 0:00:47]} d5 {[%emt 0:01:34]} 6. a3 {[%emt 0:02:24]} Bxc3+ {[%emt 0:04:27]} 7. bxc3 {[%emt 0:00:39]} c5 {[%emt 0:01:11]} 8. Bd3 {[%emt 0:01:49]} Qc7 {[%emt 0:04:53]} 9. Qc2 {[%emt 0:07:05]} b6 {[%emt 0:05:05]} 10. cxd5 {[%emt 0:08:01]} exd5 {[%emt 0:08:06]} 11. O-O {[%emt 0:01:05]} c4 {[%emt 0:01:14]} 12. Bf5 {[%emt 0:00:48]} Nc6 {[%emt 0:07:53]} 13. Nd2 {[%emt 0:05:51]} Re8 {[%emt 0:01:06]} 14. Re1 {[%emt 0:02:16]} Na5 {[%emt 0:10:21]} 15. Bxc8 {[%emt 0:13:28]} Raxc8 {[%emt 0:00:09]} 16. Rb1 {[%emt 0:05:57]} Ne4 {[%emt 0:02:22]} 17. Nf1 {[%emt 0:02:31]} Qc6 {[%emt 0:06:48]} 18. f3 {[%emt 0:00:27]} Nd6 {[%emt 0:00:16]} 19. Nd2 {[%emt 0:11:33]} Re6 {[%emt 0:06:02]} 20. a4 {[%emt 0:11:13]} Rce8 {[%emt 0:00:24]} 21. Kf2 {[%emt 0:00:07]} f5 {[%emt 0:02:24]} 22. g3 {[%emt 0:00:40]} Rh6 {[%emt 0:01:51]} 23. Rh1 {[%emt 0:03:44]} Rhe6 {[%emt 0:01:10]} 24. Re1 {[%emt 0:00:07]} Qd7 {[%emt 0:06:55]} 25. Ba3 {[%emt 0:00:30]} Nab7 {[%emt 0:01:03]} 26. Re2 {[%emt 0:03:07]} Qf7 {[%emt 0:00:48]} 27. Rbe1 {[%emt 0:01:17]} Qh5 {[%emt 0:00:55]} 28. Kg2 {[%emt 0:08:09]} f4 {[%emt 0:03:59]} 29. Bxd6 {[%emt 0:01:13]} Nxd6 {[%emt 0:01:08]} 30. Nf1 {[%emt 0:01:45]} fxg3 {[%emt 0:00:52]} 31. Nxg3 {[%emt 0:01:20]} Qh4 {[%emt 0:05:14]} 32. e4 {[%emt 0:02:41]} Rh6 {[%emt 0:00:33]} 33. Kg1 {[%emt 0:00:14]} Rg6 {[%emt 0:03:08]} 34. Rg2 {[%emt 0:01:44]} Nf7 {[%emt 0:02:51]} 35. Rf1 {[%emt 0:00:47]} Ng5 {[%emt 0:01:09]} 36. e5 {[%emt 0:00:26]} Nh3+ {[%emt 0:00:25]} 37. Kh1 {[%emt 0:00:11]} Nf4 {[%emt 0:00:26]} 38. Rgg1 {[%emt 0:00:31]} Rf8 {[%emt 0:01:20]} 39. Nf5 {[%emt 0:01:30]} Rxg1+ {[%emt 0:02:15]} 40. Rxg1 {[%emt 0:00:08]} Qh5 {[%emt 0:02:48]} 41. Ne7+ {[%emt 0:04:59]} Kh8 {[%emt 0:04:59]} 42. Rg4 {[%emt 0:03:45]} Qf7 {[%emt 0:05:13]} 43. Nc6 {[%emt 0:04:37]} Nd3 {[%emt 0:01:48]} 44. Rg3 {[%emt 0:00:21]} a5 {[%emt 0:03:45]} 45. Qb1 {[%emt 0:03:41]} Qc7 {[%emt 0:03:40]} 46. Qb5 {[%emt 0:00:49]} Rc8 {[%emt 0:00:14]} 47. Nxa5 {[%emt 0:00:46]} bxa5 {[%emt 0:00:12]} 48. Qxd5 {[%emt 0:00:05]} Rb8 {[%emt 0:01:31]} 49. e6 {[%emt 0:00:59]} Re8 {[%emt 0:01:35]} 50. Rg5 {[%emt 0:01:01]} h6 {[%emt 0:01:57]} 51. Rf5 {[%emt 0:00:22]} Nf4 {[%emt 0:03:20]} 52. Qb5 {[%emt 0:01:48]} Rxe6 {[%emt 0:04:33]} 53. Rf8+ {[%emt 0:00:14]} Kh7 {[%emt 0:00:07]} 54. Qf5+ {[%emt 0:00:09]} Ng6 {[%emt 0:01:47]} 55. Qxe6 {[%emt 0:00:38]} Nxf8 {[%emt 0:00:09]} 56. Qf5+ {[%emt 0:00:17]} Kg8 {[%emt 0:00:44]} 57. Kg2 {[%emt 0:00:11]} Qd8 {[%emt 0:00:56]} 58. f4 {[%emt 0:00:40]} Qc7 {[%emt 0:00:48]} 59. Kf3 {[%emt 0:00:34]} Qc6+ {[%emt 0:00:26]} 60. d5 {[%emt 0:00:49]} Qxa4 {[%emt 0:00:12]} 61. Qe5 {[%emt 0:03:55]} Qd1+ {[%emt 0:00:25]} 62. Kf2 {[%emt 0:01:13]} Qd2+ {[%emt 0:00:38]} 63. Kg3 {[%emt 0:00:15]} a4 {[%emt 0:00:11]} 0-1

[Event "OBEM 2019"]
[Site "Bremen"]
[Date "2019.04.16"]
[Round "5.2"]
[White "Stieglitz, Dirk"]
[Black "Hundack, Rolf"]
[Result "1/2-1/2"]
[ECO "A25"]
[WhiteElo "2076"]
[BlackElo "2140"]
[Annotator "NA"]
[PlyCount "55"]
[EventDate "2019.04.13"]
[EventType "swiss"]
[EventCountry "GER"]
[SourceTitle "playchess.com"]
[Source "ChessBase"]
[SourceQuality "1"]
[TimeControl "40/5400+30:1800+30"]

1. c4 {[%emt 0:00:00]} e5 {[%emt 0:03:59]} 2. g3 {[%emt 0:00:00]} Nc6 {[%emt 0:03:19]} 3. Bg2 {[%emt 0:02:16]} Nf6 {[%emt 0:02:50]} 4. Nc3 {[%emt 0:00:28]} Bb4 {[%emt 0:01:55]} 5. a3 {[%emt 0:03:01]} Bxc3 {[%emt 0:01:56]} 6. bxc3 {[%emt 0:00:23]} O-O {[%emt 0:01:05]} 7. d3 {[%emt 0:01:01]} d6 {[%emt 0:02:39]} 8. Rb1 {[%emt 0:00:46]} Qe7 {[%emt 0:04:37]} 9. Bg5 {[%emt 0:03:04]} h6 {[%emt 0:02:39]} 10. Bxf6 {[%emt 0:00:43]} Qxf6 {[%emt 0:00:49]} 11. e3 {[%emt 0:00:16]} Nd8 {[%emt 0:08:22]} 12. Ne2 {[%emt 0:03:03]} Bg4 {[%emt 0:08:32]} 13. O-O {[%emt 0:04:39]} Bf3 {[%emt 0:01:36]} 14. Bxf3 {[%emt 0:02:52]} Qxf3 {[%emt 0:00:16]} 15. Nc1 {[%emt 0:00:06]} Qc6 {[%emt 0:00:36]} 16. Qb3 {[%emt 0:03:46]} Qd7 {[%emt 0:03:08]} 17. Qd1 {[%emt 0:02:23]} b6 {[%emt 0:01:11]} 18. f4 {[%emt 0:01:56]} exf4 {[%emt 0:03:11]} 19. gxf4 {[%emt 0:01:38]} f5 {[%emt 0:03:02]} 20. Rf3 {[%emt 0:02:53]} Ne6 {[%emt 0:04:54]} 21. Rg3 {[%emt 0:00:21]} Rae8 {[%emt 0:02:58]} 22. Rb2 {[%emt 0:00:31]} Rf7 {[%emt 0:03:41]} 23. Rbg2 {[%emt 0:00:51]} Kf8 {[%emt 0:01:40]} 24. Ne2 {[%emt 0:06:02]} d5 {[%emt 0:02:44]} 25. cxd5 {[%emt 0:16:31]} Qxd5 {[%emt 0:00:19]} 26. c4 {[%emt 0:02:26]} Qc5 {[%emt 0:04:01]} 27. Qa1 {[%emt 0:00:37]} Ree7 {[%emt 0:02:01]} 28. Kh1 {[%emt 0:05:32]} 1/2-1/2

[Event "OBEM 2019"]
[Site "Bremen"]
[Date "2019.04.16"]
[Round "5.3"]
[White "Issing, Peter"]
[Black "Norbach, Alexander"]
[Result "1-0"]
[ECO "D10"]
[WhiteElo "2156"]
[BlackElo "1972"]
[Annotator "NA"]
[PlyCount "89"]
[EventDate "2019.04.13"]
[EventType "swiss"]
[EventCountry "GER"]
[SourceTitle "playchess.com"]
[Source "ChessBase"]
[SourceQuality "1"]
[TimeControl "40/5400+30:1800+30"]

1. d4 {[%emt 0:00:00]} d5 {[%emt 0:00:00]} 2. c4 {[%emt 0:00:00]} c6 {[%emt 0:00:00]} 3. cxd5 {[%emt 0:00:00]} cxd5 {[%emt 0:00:00]} 4. Bg5 {[%emt 0:00:01]} Nc6 {[%emt 0:00:03]} 5. Nc3 {[%emt 0:00:09]} Nf6 {[%emt 0:01:17]} 6. Bxf6 {[%emt 0:00:19] D10: Slav Defence: 3 cxd5 (without early Nf3) and 3 Nc3} exf6 {[%emt 0:00:12]} (6... gxf6 7. e3 a6 8. Rc1 Bf5 9. Bd3 Bg6 10. f4 f5 11. h4 h5 12. Nf3 e6 13. Na4 f6 {½-½ (39) Grischuk,A (2761)-Carlsen,M (2832) Paris 2017}) 7. e3 {[%emt 0:00:28]} Be6 {[%emt 0:01:12]} 8. Bd3 {[%emt 0:00:53]} Rc8 $146 {[%emt 0:00:44]} ({Predecessor:} 8... Be7 9. Nge2 O-O 10. O-O a6 11. Rc1 Rc8 {1-0 (61) Tomilova,E (2332)-Fomin,P (2056) Ekaterinburg 2018}) 9. Rc1 {[%emt 0:07:47]} a6 {[%emt 0:05:47]} 10. Nge2 {[%emt 0:01:25]} Bd6 {[%emt 0:00:19]} 11. a3 {[%emt 0:08:54]} O-O {[%emt 0:05:50]} 12. b4 {[%emt 0:09:17]} a5 {[%emt 0:04:17]} 13. b5 {[%emt 0:01:15]} Ne7 {[%emt 0:04:12]} 14. Qb3 {[%emt 0:03:35]} f5 {[%emt 0:06:11]} 15. O-O {[%emt 0:00:36]} g5 {[%emt 0:05:44]} 16. f4 {[%emt 0:02:27]} h6 {[%emt 0:00:11]} 17. Ng3 {[%emt 0:04:59]} f6 {[%emt 0:17:17]} 18. Nce2 {[%emt 0:08:40]} Qd7 {[%emt 0:05:43]} 19. a4 {[%emt 0:00:52]} Bb4 {[%emt 0:02:50]} 20. Rcd1 {[%emt 0:06:07]} Rcd8 {[%emt 0:04:18]} 21. Qb1 {[%emt 0:00:29]} Rf7 {[%emt 0:07:00]} 22. Kf2 {[%emt 0:08:05]} Rdf8 {[%emt 0:03:59]} 23. Rh1 {[%emt 0:01:39]} Rh7 {[%emt 0:03:26]} 24. h4 {[%emt 0:11:30]} Rg7 {[%emt 0:05:19]} 25. Nh5 {[%emt 0:01:20]} Rgf7 {[%emt 0:05:31]} 26. Neg3 {[%emt 0:00:57]} Bd6 {[%emt 0:03:44]} 27. Ke2 {[%emt 0:06:03]} g4 {[%emt 0:00:18]} 28. Kf2 {[%emt 0:01:15]} Bb4 {[%emt 0:02:24]} 29. Rhf1 {[%emt 0:04:44]} Rd8 {[%emt 0:00:15]} (29... b6 $11) 30. b6 {[%emt 0:01:33]} Rff8 {[%emt 0:00:19] [#]} ({Black should try} 30... Rc8 $14) 31. Rc1 $1 {[%emt 0:01:03]} Kf7 $2 {[%emt 0:04:34]} (31... Bd6 $16 {is more resistant.}) 32. Rc7 {[%emt 0:00:52]} Qxa4 {[%emt 0:00:13]} 33. Bxf5 {[%emt 0:01:52]} Rd7 {[%emt 0:00:30]} 34. Ng7 {[%emt 0:03:58]} Nxf5 {[%emt 0:01:07]} 35. N7xf5 {[%emt 0:00:48]} Bxf5 $2 {[%emt 0:00:18]} (35... Rxc7 36. bxc7 (36. Nxh6+ Kg7 $11) 36... Qd7) 36. Qxf5 {[%emt 0:00:26]} Rxc7 {[%emt 0:00:56]} 37. bxc7 {[%emt 0:00:59]} Qc6 {[%emt 0:00:04]} 38. Qh5+ {[%emt 0:00:53]} Ke7 {[%emt 0:00:31]} 39. Qxh6 {[%emt 0:02:07]} Qc2+ {[%emt 0:00:51]} 40. Kg1 {[%emt 0:00:23]} Rf7 $2 {[%emt 0:01:37]} (40... Qxc7 $16 41. Qh5 Qd7) 41. Qh5 {[%emt 0:01:37]} f5 $18 {[%emt 0:08:28]} (41... Qxc7 42. Qxd5 Qd7) 42. Qg5+ {[%emt 0:00:57]} Ke6 {[%emt 0:02:33]} 43. Qg6+ {[%emt 0:00:18]} Ke7 {[%emt 0:01:24]} 44. Qb6 {[%emt 0:05:50]} Ke8 {[%emt 0:04:44]} 45. Qe6+ {[%emt 0:00:36]} 1-0